[Event "*** Titled Tuesday Blitz"]
[Site "Chess.com"]
[Date "2020.04.28"]
[Round "3"]
[White "Chessterra87"]
[Black "WiktoriaPOL"]
[Result "1-0"]
[WhiteElo "2302"]
[BlackElo "2039"]
[TimeControl "180+1"]
[EndTime "10:28:03 PDT"]
[Termination "Chessterra87 won by resignation"]

1. e4 {[%clk 0:03:00.9]} 1... c5 {[%clk 0:02:59.5]} 2. c3 {[%clk 0:03:00.1]}
2... Nf6 {[%clk 0:02:58.2]} 3. e5 {[%clk 0:02:59.3]} 3... Nd5 {[%clk 0:02:58.2]}
4. Bc4 {[%clk 0:02:59.4]} 4... Nb6 {[%clk 0:02:56.6]} 5. Bb3 {[%clk 0:02:59.6]}
5... d6 {[%clk 0:02:50]} 6. Nf3 {[%clk 0:02:52.4]} 6... dxe5 {[%clk 0:02:46.3]}
7. Nxe5 {[%clk 0:02:50.7]} 7... e6 {[%clk 0:02:44.9]} 8. O-O {[%clk 0:02:49.3]}
8... Bd6 {[%clk 0:02:42.3]} 9. d4 {[%clk 0:02:45]} 9... O-O {[%clk 0:02:32.8]}
10. Qh5 {[%clk 0:02:33.5]} 10... cxd4 {[%clk 0:02:26]} 11. cxd4 {[%clk
0:02:30.1]} 11... Nc6 {[%clk 0:02:18.6]} 12. Nxc6 {[%clk 0:02:23.8]} 12... bxc6
{[%clk 0:02:18.9]} 13. Nc3 {[%clk 0:02:24]} 13... Nd5 {[%clk 0:02:07.5]} 14. Ne4
{[%clk 0:02:19.3]} 14... Bc7 {[%clk 0:01:59.8]} 15. Bc2 {[%clk 0:02:11.1]} 15...
f5 {[%clk 0:01:46.9]} 16. Ng5 {[%clk 0:01:58.7]} 16... Nf6 {[%clk 0:01:31.3]}
17. Qh4 {[%clk 0:01:53.6]} 17... e5 {[%clk 0:01:16.3]} 18. dxe5 {[%clk
0:01:50.5]} 18... Bxe5 {[%clk 0:01:12.9]} 19. Bb3+ {[%clk 0:01:42.4]} 19... Kh8
{[%clk 0:01:09.7]} 20. Nf7+ {[%clk 0:01:38]} 20... Rxf7 {[%clk 0:01:08.4]} 21.
Bxf7 {[%clk 0:01:38.9]} 21... Ba6 {[%clk 0:01:00.8]} 22. Re1 {[%clk 0:01:34.9]}
22... Ng4 {[%clk 0:00:45.7]} 23. Qxd8+ {[%clk 0:01:29.2]} 23... Rxd8 {[%clk
0:00:45.2]} 24. h3 {[%clk 0:01:21.8]} 24... Nh6 {[%clk 0:00:24]} 25. Bxh6 {[%clk
0:01:17.2]} 25... Bxb2 {[%clk 0:00:20.5]} 26. Rad1 {[%clk 0:01:15.1]} 26... Rxd1
{[%clk 0:00:18.7]} 27. Rxd1 {[%clk 0:01:14.2]} 27... gxh6 {[%clk 0:00:19.3]} 28.
Rd8+ {[%clk 0:01:12]} 28... Kg7 {[%clk 0:00:19]} 29. Rd7 {[%clk 0:01:12.9]}
29... Kf6 {[%clk 0:00:18.2]} 30. Rxa7 {[%clk 0:01:12.6]} 30... Bd4 {[%clk
0:00:15.2]} 31. Rxa6 {[%clk 0:01:12]} 31... Kxf7 {[%clk 0:00:14.8]} 32. Rxc6
{[%clk 0:01:12.5]} 32... Ke7 {[%clk 0:00:13.5]} 33. a4 {[%clk 0:01:12.1]} 33...
Kd7 {[%clk 0:00:13.3]} 34. Rxh6 {[%clk 0:01:12.2]} 1-0

[Event "*** Titled Tuesday Blitz"]
[Site "Chess.com"]
[Date "2020.04.28"]
[Round "3"]
[White "yamalchess"]
[Black "LogoCzar"]
[Result "1-0"]
[WhiteElo "2585"]
[BlackElo "2380"]
[TimeControl "180+1"]
[EndTime "10:28:05 PDT"]
[Termination "yamalchess won by resignation"]

1. d4 {[%clk 0:03:00.9]} 1... d5 {[%clk 0:02:59.9]} 2. c4 {[%clk 0:03:01]} 2...
c6 {[%clk 0:03:00.3]} 3. Nc3 {[%clk 0:03:01]} 3... Nf6 {[%clk 0:03:00.7]} 4. Bf4
{[%clk 0:03:01.5]} 4... dxc4 {[%clk 0:03:00.5]} 5. e3 {[%clk 0:03:00.8]} 5... b5
{[%clk 0:03:00.3]} 6. a4 {[%clk 0:03:00.5]} 6... Qb6 {[%clk 0:02:49]} 7. Nf3
{[%clk 0:02:53.9]} 7... a6 {[%clk 0:02:48]} 8. Be2 {[%clk 0:02:51.3]} 8... e6
{[%clk 0:02:44.5]} 9. O-O {[%clk 0:02:51]} 9... Be7 {[%clk 0:02:44.5]} 10. e4
{[%clk 0:02:40.9]} 10... O-O {[%clk 0:02:37.3]} 11. Be3 {[%clk 0:02:30.7]} 11...
Bb7 {[%clk 0:02:26.8]} 12. d5 {[%clk 0:02:24.3]} 12... Qc7 {[%clk 0:02:19.4]}
13. dxe6 {[%clk 0:02:18.2]} 13... fxe6 {[%clk 0:02:18]} 14. Ng5 {[%clk 0:02:12]}
14... Qc8 {[%clk 0:02:07.7]} 15. Bg4 {[%clk 0:02:07.7]} 15... Nxg4 {[%clk
0:01:59.1]} 16. Qxg4 {[%clk 0:02:07]} 16... Bxg5 {[%clk 0:01:32.8]} 17. Bxg5
{[%clk 0:02:01.7]} 17... e5 {[%clk 0:01:32.4]} 18. Qh4 {[%clk 0:01:58.3]} 18...
Nd7 {[%clk 0:01:28.8]} 19. Rad1 {[%clk 0:01:44.2]} 19... Nf6 {[%clk 0:01:28.5]}
20. Rd6 {[%clk 0:01:32.7]} 20... c5 {[%clk 0:01:13.2]} 21. Bxf6 {[%clk 0:01:31]}
21... Rxf6 {[%clk 0:01:10.9]} 22. Rxf6 {[%clk 0:01:30.7]} 22... gxf6 {[%clk
0:01:10.9]} 23. Qxf6 {[%clk 0:01:28.6]} 23... b4 {[%clk 0:01:04.3]} 24. Qg5+
{[%clk 0:01:26.9]} 24... Kh8 {[%clk 0:01:01.6]} 25. Qxe5+ {[%clk 0:01:25.6]}
25... Kg8 {[%clk 0:01:01.4]} 26. Nd5 {[%clk 0:01:23.9]} 26... Bxd5 {[%clk
0:00:47.2]} 27. Qxd5+ {[%clk 0:01:23.6]} 27... Kh8 {[%clk 0:00:47.6]} 28. f4
{[%clk 0:01:22.9]} 28... Qd8 {[%clk 0:00:38.5]} 29. Qxc5 {[%clk 0:01:18.6]}
29... Rc8 {[%clk 0:00:36.5]} 30. Qe5+ {[%clk 0:01:15.3]} 30... Kg8 {[%clk
0:00:35.3]} 31. h3 {[%clk 0:01:08.8]} 31... c3 {[%clk 0:00:33.9]} 32. bxc3
{[%clk 0:01:07.8]} 32... bxc3 {[%clk 0:00:31.1]} 33. Rf3 {[%clk 0:01:07.4]}
33... Qh4 {[%clk 0:00:23.4]} 34. Qe6+ {[%clk 0:01:06.3]} 1-0

[Event "*** Titled Tuesday Blitz"]
[Site "Chess.com"]
[Date "2020.04.28"]
[Round "3"]
[White "FelixJoseYnojosa"]
[Black "rpragchess"]
[Result "0-1"]
[WhiteElo "2612"]
[BlackElo "2816"]
[TimeControl "180+1"]
[EndTime "10:28:09 PDT"]
[Termination "rpragchess won by checkmate"]

1. e4 {[%clk 0:03:00.9]} 1... c5 {[%clk 0:02:59.5]} 2. c3 {[%clk 0:03:01.1]}
2... Nf6 {[%clk 0:02:58]} 3. e5 {[%clk 0:03:01.6]} 3... Nd5 {[%clk 0:02:58.2]}
4. d4 {[%clk 0:03:02.3]} 4... cxd4 {[%clk 0:02:58.7]} 5. cxd4 {[%clk 0:03:02.9]}
5... d6 {[%clk 0:02:59.3]} 6. Nf3 {[%clk 0:03:02.5]} 6... e6 {[%clk 0:02:59.4]}
7. Bc4 {[%clk 0:03:01.8]} 7... dxe5 {[%clk 0:02:59]} 8. dxe5 {[%clk 0:03:02.1]}
8... Be7 {[%clk 0:02:59.5]} 9. O-O {[%clk 0:03:01.9]} 9... O-O {[%clk
0:02:59.9]} 10. Bd2 {[%clk 0:03:01]} 10... Bd7 {[%clk 0:02:56.9]} 11. Nc3 {[%clk
0:03:00]} 11... Bc6 {[%clk 0:02:53.9]} 12. Qe2 {[%clk 0:02:59.8]} 12... Nxc3
{[%clk 0:02:47.2]} 13. Bxc3 {[%clk 0:02:58.9]} 13... Bxf3 {[%clk 0:02:47.9]} 14.
Qxf3 {[%clk 0:02:57.6]} 14... Nc6 {[%clk 0:02:48.6]} 15. Rfd1 {[%clk 0:02:57.4]}
15... Qc7 {[%clk 0:02:47.7]} 16. Qe4 {[%clk 0:02:49.5]} 16... Rfd8 {[%clk
0:02:42.8]} 17. h4 {[%clk 0:02:49.2]} 17... Rxd1+ {[%clk 0:02:39.5]} 18. Rxd1
{[%clk 0:02:48.8]} 18... Rd8 {[%clk 0:02:40.2]} 19. Rc1 {[%clk 0:02:43.5]} 19...
Qb6 {[%clk 0:02:25]} 20. a3 {[%clk 0:02:42.9]} 20... Bc5 {[%clk 0:02:20.1]} 21.
Qf4 {[%clk 0:02:01]} 21... Bd4 {[%clk 0:02:07.5]} 22. h5 {[%clk 0:02:01.2]}
22... h6 {[%clk 0:01:53]} 23. Be2 {[%clk 0:01:16.2]} 23... Bxc3 {[%clk
0:01:26.1]} 24. Rxc3 {[%clk 0:01:16]} 24... Qxb2 {[%clk 0:01:25.4]} 25. Re3
{[%clk 0:01:14.8]} 25... Rd5 {[%clk 0:01:09.5]} 26. Bf3 {[%clk 0:01:04.8]} 26...
Qc1+ {[%clk 0:00:58.4]} 27. Kh2 {[%clk 0:01:03.6]} 27... Rxe5 {[%clk 0:00:58.8]}
28. Bxc6 {[%clk 0:00:59.1]} 28... Rxh5+ {[%clk 0:00:57]} 29. Kg3 {[%clk
0:00:57.7]} 29... Qxc6 {[%clk 0:00:56.9]} 30. Qb8+ {[%clk 0:00:49.7]} 30... Kh7
{[%clk 0:00:55.8]} 31. Qxa7 {[%clk 0:00:50.2]} 31... Rg5+ {[%clk 0:00:55.1]} 32.
Kh4 {[%clk 0:00:46.4]} 32... Qxg2 {[%clk 0:00:54]} 33. Qd4 {[%clk 0:00:44.9]}
33... Qxf2+ {[%clk 0:00:43.4]} 34. Kh3 {[%clk 0:00:44.5]} 34... Rh5+ {[%clk
0:00:43.8]} 35. Kg4 {[%clk 0:00:44.4]} 35... Rh4# {[%clk 0:00:44.2]} 0-1

[Event "*** Titled Tuesday Blitz"]
[Site "Chess.com"]
[Date "2020.04.28"]
[Round "3"]
[White "politeplayer"]
[Black "adiosabu"]
[Result "0-1"]
[WhiteElo "2197"]
[BlackElo "2411"]
[TimeControl "180+1"]
[EndTime "10:28:12 PDT"]
[Termination "adiosabu won by resignation"]

1. e4 {[%clk 0:03:00.9]} 1... e5 {[%clk 0:02:56.9]} 2. f4 {[%clk 0:02:59.8]}
2... d6 {[%clk 0:02:57.4]} 3. Nf3 {[%clk 0:02:58.3]} 3... Nf6 {[%clk 0:02:56.1]}
4. Nc3 {[%clk 0:02:53.4]} 4... Bg4 {[%clk 0:02:52.4]} 5. Bc4 {[%clk 0:02:52.6]}
5... Nc6 {[%clk 0:02:49.9]} 6. d3 {[%clk 0:02:51.1]} 6... Be7 {[%clk 0:02:47.9]}
7. f5 {[%clk 0:02:47.3]} 7... h6 {[%clk 0:02:46.3]} 8. Be3 {[%clk 0:02:43.5]}
8... Nd4 {[%clk 0:02:45]} 9. O-O {[%clk 0:02:16.5]} 9... c6 {[%clk 0:02:28.9]}
10. Qd2 {[%clk 0:02:12.3]} 10... Bxf3 {[%clk 0:02:18.6]} 11. gxf3 {[%clk
0:02:10.6]} 11... d5 {[%clk 0:02:18.2]} 12. exd5 {[%clk 0:02:07.7]} 12... cxd5
{[%clk 0:02:01.2]} 13. Bxd4 {[%clk 0:02:04.5]} 13... exd4 {[%clk 0:01:57.5]} 14.
Bb5+ {[%clk 0:02:03.6]} 14... Kf8 {[%clk 0:01:57.9]} 15. Ne2 {[%clk 0:02:01.8]}
15... Qb6 {[%clk 0:01:50]} 16. Ba4 {[%clk 0:02:00.1]} 16... Bd6 {[%clk
0:01:48.9]} 17. Bb3 {[%clk 0:01:57.5]} 17... Re8 {[%clk 0:01:43.5]} 18. Nf4
{[%clk 0:01:53]} 18... Qc5 {[%clk 0:01:32.9]} 19. Rae1 {[%clk 0:01:50.6]} 19...
Re3 {[%clk 0:01:28.7]} 20. Ng2 {[%clk 0:01:39.7]} 20... Re7 {[%clk 0:01:21.6]}
21. Rxe7 {[%clk 0:01:34.1]} 21... Kxe7 {[%clk 0:01:22.5]} 22. Re1+ {[%clk
0:01:33.7]} 22... Kd8 {[%clk 0:01:21.7]} 23. Kh1 {[%clk 0:01:25.7]} 23... Re8
{[%clk 0:01:19.8]} 24. Rxe8+ {[%clk 0:01:24.6]} 24... Kxe8 {[%clk 0:01:20.7]}
25. c3 {[%clk 0:01:23.9]} 25... dxc3 {[%clk 0:01:16.6]} 26. bxc3 {[%clk
0:01:22.8]} 26... Qc7 {[%clk 0:01:11.9]} 27. Ne3 {[%clk 0:01:17.1]} 27... Bf4
{[%clk 0:01:11.1]} 28. Qe2 {[%clk 0:01:17.6]} 28... Qe5 {[%clk 0:01:08.9]} 29.
Ba4+ {[%clk 0:01:11]} 29... Kf8 {[%clk 0:01:07.3]} 30. Qb2 {[%clk 0:01:04.5]}
30... Qxe3 {[%clk 0:01:05.2]} 31. Kg2 {[%clk 0:00:56.4]} 31... Qd2+ {[%clk
0:01:01.9]} 32. Qxd2 {[%clk 0:00:55.5]} 32... Bxd2 {[%clk 0:01:01.5]} 33. c4
{[%clk 0:00:56]} 33... dxc4 {[%clk 0:01:00.4]} 34. dxc4 {[%clk 0:00:56.5]} 34...
b6 {[%clk 0:01:01.1]} 35. Bc6 {[%clk 0:00:55.8]} 35... Bf4 {[%clk 0:01:00.2]}
36. h3 {[%clk 0:00:54.3]} 36... Ke7 {[%clk 0:00:59.8]} 37. Kf2 {[%clk
0:00:54.5]} 37... Kd6 {[%clk 0:00:59.9]} 38. Be8 {[%clk 0:00:54.4]} 38... Nxe8
{[%clk 0:00:58.6]} 0-1

[Event "*** Titled Tuesday Blitz"]
[Site "Chess.com"]
[Date "2020.04.28"]
[Round "3"]
[White "FMalexhdez"]
[Black "ChelsieMonica"]
[Result "0-1"]
[WhiteElo "2123"]
[BlackElo "2341"]
[TimeControl "180+1"]
[EndTime "10:28:12 PDT"]
[Termination "ChelsieMonica won by resignation"]

1. e4 {[%clk 0:03:00.9]} 1... e5 {[%clk 0:02:53]} 2. Nf3 {[%clk 0:03:00]} 2...
Nc6 {[%clk 0:02:52.7]} 3. Bb5 {[%clk 0:02:59.8]} 3... a6 {[%clk 0:02:52.6]} 4.
Ba4 {[%clk 0:02:59.6]} 4... Nf6 {[%clk 0:02:52.6]} 5. d3 {[%clk 0:02:58.5]} 5...
b5 {[%clk 0:02:52]} 6. Bb3 {[%clk 0:02:57.4]} 6... Be7 {[%clk 0:02:49.4]} 7. O-O
{[%clk 0:02:54]} 7... Bb7 {[%clk 0:02:44.9]} 8. c3 {[%clk 0:02:53.5]} 8... O-O
{[%clk 0:02:44.2]} 9. Nbd2 {[%clk 0:02:53]} 9... d5 {[%clk 0:02:39.5]} 10. exd5
{[%clk 0:02:51.8]} 10... Nxd5 {[%clk 0:02:38.6]} 11. Ne4 {[%clk 0:02:42.7]}
11... h6 {[%clk 0:02:24.8]} 12. Re1 {[%clk 0:02:40.2]} 12... Re8 {[%clk
0:02:20.6]} 13. h3 {[%clk 0:02:20.7]} 13... Bf8 {[%clk 0:02:14.2]} 14. Ng3
{[%clk 0:02:18.8]} 14... Nf4 {[%clk 0:01:55.5]} 15. Bxf4 {[%clk 0:02:16.2]}
15... exf4 {[%clk 0:01:55.5]} 16. Rxe8 {[%clk 0:01:50.7]} 16... Qxe8 {[%clk
0:01:54.7]} 17. Nh5 {[%clk 0:01:47.7]} 17... Bd6 {[%clk 0:01:48.7]} 18. Qd2
{[%clk 0:01:44.4]} 18... Na5 {[%clk 0:01:47.7]} 19. Re1 {[%clk 0:01:32.7]} 19...
Qd7 {[%clk 0:01:27.5]} 20. Ne5 {[%clk 0:01:14.3]} 20... Nxb3 {[%clk 0:01:19.9]}
21. axb3 {[%clk 0:01:09.3]} 21... Qf5 {[%clk 0:01:18.2]} 22. Nxg7 {[%clk
0:00:41.9]} 22... Kxg7 {[%clk 0:01:14.7]} 23. d4 {[%clk 0:00:41]} 23... Re8
{[%clk 0:01:12.1]} 24. Ng4 {[%clk 0:00:31]} 24... Rxe1+ {[%clk 0:01:09.8]} 25.
Qxe1 {[%clk 0:00:30.4]} 25... Qe4 {[%clk 0:00:59.6]} 26. Qf1 {[%clk 0:00:26.3]}
26... h5 {[%clk 0:00:59.6]} 27. Nh2 {[%clk 0:00:25.2]} 27... Qg6 {[%clk
0:00:58.4]} 28. Kh1 {[%clk 0:00:23.9]} 28... f3 {[%clk 0:00:55.5]} 29. Nxf3
{[%clk 0:00:20.4]} 29... Bxf3 {[%clk 0:00:55.7]} 30. gxf3 {[%clk 0:00:20.5]}
30... Qf5 {[%clk 0:00:55.9]} 31. Qg2+ {[%clk 0:00:19.1]} 31... Kh7 {[%clk
0:00:56.2]} 0-1

[Event "*** Titled Tuesday Blitz"]
[Site "Chess.com"]
[Date "2020.04.28"]
[Round "3"]
[White "Cocaino74"]
[Black "Balla_Tamas"]
[Result "0-1"]
[WhiteElo "2316"]
[BlackElo "2539"]
[TimeControl "180+1"]
[EndTime "10:28:13 PDT"]
[Termination "Balla_Tamas won on time"]

1. e4 {[%clk 0:03:00.9]} 1... c5 {[%clk 0:02:59.2]} 2. Nf3 {[%clk 0:03:01.3]}
2... e6 {[%clk 0:02:56.7]} 3. c3 {[%clk 0:03:00.7]} 3... d5 {[%clk 0:02:53.6]}
4. exd5 {[%clk 0:03:00.5]} 4... Qxd5 {[%clk 0:02:45.9]} 5. d4 {[%clk 0:02:54.5]}
5... Nf6 {[%clk 0:02:44.4]} 6. Na3 {[%clk 0:02:49.5]} 6... cxd4 {[%clk
0:02:37.2]} 7. Nb5 {[%clk 0:02:47.8]} 7... Na6 {[%clk 0:02:20.4]} 8. Nbxd4
{[%clk 0:01:58.7]} 8... Be7 {[%clk 0:02:17.9]} 9. Bxa6 {[%clk 0:01:47.5]} 9...
bxa6 {[%clk 0:02:17.5]} 10. Qa4+ {[%clk 0:01:47.6]} 10... Bd7 {[%clk 0:02:16.6]}
11. Qxa6 {[%clk 0:01:47.5]} 11... O-O {[%clk 0:02:15.7]} 12. O-O {[%clk
0:01:45.9]} 12... Rfb8 {[%clk 0:02:13.2]} 13. Qe2 {[%clk 0:01:23.7]} 13... a5
{[%clk 0:01:47.8]} 14. Rd1 {[%clk 0:01:04.3]} 14... Qb7 {[%clk 0:01:44.3]} 15.
Bf4 {[%clk 0:01:01.3]} 15... Rc8 {[%clk 0:01:37.9]} 16. Ne5 {[%clk 0:00:59]}
16... Be8 {[%clk 0:01:37.2]} 17. Rd3 {[%clk 0:00:44.7]} 17... Nd5 {[%clk
0:01:36.4]} 18. Bd2 {[%clk 0:00:42.8]} 18... f6 {[%clk 0:01:23.8]} 19. Rg3
{[%clk 0:00:06.8]} 19... fxe5 {[%clk 0:01:15.5]} 20. Qxe5 {[%clk 0:00:06.3]}
20... Bf6 {[%clk 0:01:16.1]} 21. Qxe6+ {[%clk 0:00:03.6]} 21... Bf7 {[%clk
0:01:16.7]} 22. Qf5 {[%clk 0:00:02.6]} 22... Qxb2 {[%clk 0:00:59.4]} 23. Rd1
{[%clk 0:00:01.6]} 23... Nxc3 {[%clk 0:00:55]} 24. Bxc3 {[%clk 0:00:01.3]} 24...
Rxc3 {[%clk 0:00:54.4]} 0-1

[Event "*** Titled Tuesday Blitz"]
[Site "Chess.com"]
[Date "2020.04.28"]
[Round "3"]
[White "IwkooO"]
[Black "Antelacus"]
[Result "1-0"]
[WhiteElo "2578"]
[BlackElo "2310"]
[TimeControl "180+1"]
[EndTime "10:28:14 PDT"]
[Termination "IwkooO won by resignation"]

1. e4 {[%clk 0:03:00.9]} 1... c5 {[%clk 0:02:59.1]} 2. Nf3 {[%clk 0:03:00.8]}
2... d6 {[%clk 0:02:58.3]} 3. d4 {[%clk 0:03:01.4]} 3... cxd4 {[%clk 0:02:58.5]}
4. Nxd4 {[%clk 0:03:02.3]} 4... Nf6 {[%clk 0:02:58.6]} 5. Nc3 {[%clk 0:03:02.9]}
5... a6 {[%clk 0:02:59]} 6. Be3 {[%clk 0:03:00.2]} 6... e5 {[%clk 0:02:57.7]} 7.
Nb3 {[%clk 0:03:00.4]} 7... Be7 {[%clk 0:02:56.7]} 8. Qd2 {[%clk 0:03:00.9]}
8... Be6 {[%clk 0:02:55]} 9. f4 {[%clk 0:02:59.9]} 9... Qc7 {[%clk 0:02:52.4]}
10. O-O-O {[%clk 0:02:53.7]} 10... Nbd7 {[%clk 0:02:49.4]} 11. h3 {[%clk
0:02:44.8]} 11... b5 {[%clk 0:02:35.2]} 12. g4 {[%clk 0:02:39.5]} 12... Nc5
{[%clk 0:02:30]} 13. Nxc5 {[%clk 0:02:34]} 13... dxc5 {[%clk 0:02:26.5]} 14. f5
{[%clk 0:02:28]} 14... b4 {[%clk 0:02:03.7]} 15. fxe6 {[%clk 0:02:19.6]} 15...
bxc3 {[%clk 0:02:02.4]} 16. exf7+ {[%clk 0:02:19.8]} 16... Kxf7 {[%clk
0:02:02.4]} 17. Qxc3 {[%clk 0:02:17.8]} 17... Rhd8 {[%clk 0:01:45.3]} 18. Bc4+
{[%clk 0:02:14]} 18... Kf8 {[%clk 0:01:45.1]} 19. g5 {[%clk 0:02:03.1]} 19...
Nh5 {[%clk 0:01:28.4]} 20. Rhf1+ {[%clk 0:02:00.3]} 20... Nf4 {[%clk 0:01:26.9]}
21. Bd5 {[%clk 0:01:38.8]} 21... Rab8 {[%clk 0:01:20.8]} 22. Kb1 {[%clk
0:01:34.4]} 22... Rb4 {[%clk 0:01:07.9]} 23. h4 {[%clk 0:01:28.9]} 23... Rdb8
{[%clk 0:01:05.6]} 24. b3 {[%clk 0:01:24.2]} 24... a5 {[%clk 0:01:04]} 25. Bxf4
{[%clk 0:00:58.1]} 25... exf4 {[%clk 0:01:03]} 26. e5 {[%clk 0:00:58.7]} 26...
a4 {[%clk 0:00:30.2]} 27. Bc4 {[%clk 0:00:57.1]} 27... Rxc4 {[%clk 0:00:24.7]}
28. Qxc4 {[%clk 0:00:56.4]} 28... Qxe5 {[%clk 0:00:24.4]} 29. Rxf4+ {[%clk
0:00:51.8]} 1-0

[Event "*** Titled Tuesday Blitz"]
[Site "Chess.com"]
[Date "2020.04.28"]
[Round "3"]
[White "Nikolakis2014"]
[Black "Lion-Al-Messi"]
[Result "1-0"]
[WhiteElo "2709"]
[BlackElo "2428"]
[TimeControl "180+1"]
[EndTime "10:28:17 PDT"]
[Termination "Nikolakis2014 won by resignation"]

1. Nf3 {[%clk 0:03:00.9]} 1... b6 {[%clk 0:02:59.9]} 2. c4 {[%clk 0:03:00.3]}
2... Bb7 {[%clk 0:02:59.5]} 3. Nc3 {[%clk 0:02:59.6]} 3... Nf6 {[%clk
0:02:59.5]} 4. g3 {[%clk 0:02:59.9]} 4... Bxf3 {[%clk 0:02:58.4]} 5. exf3 {[%clk
0:02:59.6]} 5... c5 {[%clk 0:02:58.9]} 6. d4 {[%clk 0:02:59.5]} 6... cxd4 {[%clk
0:02:58.7]} 7. Qxd4 {[%clk 0:02:59.4]} 7... Nc6 {[%clk 0:02:58.2]} 8. Qd1 {[%clk
0:02:59.4]} 8... e6 {[%clk 0:02:57.8]} 9. Bg2 {[%clk 0:02:59.3]} 9... Bb4 {[%clk
0:02:57]} 10. Bd2 {[%clk 0:02:58.5]} 10... O-O {[%clk 0:02:56.2]} 11. O-O {[%clk
0:02:58.2]} 11... Rc8 {[%clk 0:02:56.2]} 12. Nb5 {[%clk 0:02:45.1]} 12... Bc5
{[%clk 0:02:51.6]} 13. Bg5 {[%clk 0:02:38.9]} 13... h6 {[%clk 0:02:45.9]} 14.
Bxf6 {[%clk 0:02:08]} 14... Qxf6 {[%clk 0:02:45.4]} 15. Qe2 {[%clk 0:02:05.1]}
15... a6 {[%clk 0:02:43]} 16. Nc3 {[%clk 0:02:01.9]} 16... Nd4 {[%clk
0:02:42.4]} 17. Qd3 {[%clk 0:02:01.4]} 17... Rfd8 {[%clk 0:02:28.9]} 18. f4
{[%clk 0:01:59.9]} 18... Nf5 {[%clk 0:02:21.7]} 19. Rfd1 {[%clk 0:01:54.9]}
19... Rc7 {[%clk 0:02:18.8]} 20. Rac1 {[%clk 0:01:53]} 20... g6 {[%clk
0:02:14.8]} 21. Rd2 {[%clk 0:01:46.9]} 21... Kg7 {[%clk 0:02:14.6]} 22. Ne4
{[%clk 0:01:44]} 22... Qe7 {[%clk 0:01:54]} 23. Qc3+ {[%clk 0:01:20.4]} 23... f6
{[%clk 0:01:54]} 24. Qf3 {[%clk 0:01:15.6]} 24... Nd4 {[%clk 0:01:48.9]} 25. Qd1
{[%clk 0:01:15]} 25... e5 {[%clk 0:01:45.1]} 26. fxe5 {[%clk 0:01:14.4]} 26...
fxe5 {[%clk 0:01:46]} 27. Nc3 {[%clk 0:01:14.4]} 27... Qf7 {[%clk 0:01:38.7]}
28. Nd5 {[%clk 0:01:12.9]} 28... Rcc8 {[%clk 0:01:38]} 29. b4 {[%clk 0:01:12.6]}
29... Bd6 {[%clk 0:01:22.3]} 30. Rxd4 {[%clk 0:01:09.1]} 30... exd4 {[%clk
0:01:21.8]} 31. Qxd4+ {[%clk 0:01:09]} 31... Kf8 {[%clk 0:01:02.4]} 32. Qh8+
{[%clk 0:01:06.9]} 32... Qg8 {[%clk 0:01:02.4]} 33. Qf6+ {[%clk 0:01:06.8]}
33... Qf7 {[%clk 0:00:58.3]} 34. Qxd6+ {[%clk 0:01:06.5]} 34... Kg8 {[%clk
0:00:58.5]} 35. Ne7+ {[%clk 0:00:59.8]} 35... Kg7 {[%clk 0:00:58.1]} 36. Nxc8
{[%clk 0:00:59.6]} 36... Rxc8 {[%clk 0:00:59]} 37. Bd5 {[%clk 0:00:58]} 37...
Qe8 {[%clk 0:00:50.4]} 38. Qxb6 {[%clk 0:00:51.1]} 38... Qe5 {[%clk 0:00:49.7]}
39. Qe3 {[%clk 0:00:48.1]} 39... Qf6 {[%clk 0:00:47.7]} 40. Re1 {[%clk
0:00:47.3]} 40... Rb8 {[%clk 0:00:44.5]} 41. a3 {[%clk 0:00:46.5]} 41... Qe7
{[%clk 0:00:45.4]} 42. Qxe7+ {[%clk 0:00:46.2]} 1-0

[Event "*** Titled Tuesday Blitz"]
[Site "Chess.com"]
[Date "2020.04.28"]
[Round "3"]
[White "Kildepiotr"]
[Black "Dobuchak"]
[Result "1-0"]
[WhiteElo "2562"]
[BlackElo "2358"]
[TimeControl "180+1"]
[EndTime "10:28:19 PDT"]
[Termination "Kildepiotr won by resignation"]

1. Nf3 {[%clk 0:03:00.9]} 1... c5 {[%clk 0:03:00]} 2. g3 {[%clk 0:03:01]} 2...
Nc6 {[%clk 0:02:59.1]} 3. Bg2 {[%clk 0:03:01.6]} 3... e5 {[%clk 0:02:59.6]} 4.
O-O {[%clk 0:03:02]} 4... g6 {[%clk 0:03:00.3]} 5. d3 {[%clk 0:03:01.1]} 5...
Bg7 {[%clk 0:03:00.6]} 6. e4 {[%clk 0:03:01.2]} 6... Nge7 {[%clk 0:03:00.8]} 7.
c3 {[%clk 0:03:00.7]} 7... d6 {[%clk 0:03:01.2]} 8. a3 {[%clk 0:03:00]} 8... O-O
{[%clk 0:02:59.3]} 9. b4 {[%clk 0:02:59.1]} 9... b6 {[%clk 0:02:59.8]} 10. Nbd2
{[%clk 0:02:55.4]} 10... h6 {[%clk 0:02:59]} 11. Nc4 {[%clk 0:02:54.2]} 11...
Be6 {[%clk 0:02:56.8]} 12. Nfd2 {[%clk 0:02:50.2]} 12... f5 {[%clk 0:02:55.4]}
13. exf5 {[%clk 0:02:49.3]} 13... gxf5 {[%clk 0:02:47.4]} 14. b5 {[%clk
0:02:46.2]} 14... d5 {[%clk 0:02:46.6]} 15. bxc6 {[%clk 0:02:43.5]} 15... dxc4
{[%clk 0:02:46.7]} 16. Nxc4 {[%clk 0:02:43.2]} 16... Qc7 {[%clk 0:02:42.8]} 17.
Qh5 {[%clk 0:02:36.3]} 17... Bf7 {[%clk 0:02:31.5]} 18. Qh3 {[%clk 0:02:34.3]}
18... h5 {[%clk 0:02:25.2]} 19. Re1 {[%clk 0:02:33.2]} 19... Rad8 {[%clk
0:02:19.3]} 20. Bg5 {[%clk 0:02:28.4]} 20... Rxd3 {[%clk 0:02:14.2]} 21. Nxe5
{[%clk 0:02:12.4]} 21... Bxe5 {[%clk 0:02:10.3]} 22. Bxe7 {[%clk 0:02:12.5]}
22... Qxe7 {[%clk 0:01:11.7]} 23. Qxf5 {[%clk 0:02:10.6]} 23... Rxc3 {[%clk
0:01:11.1]} 24. Rxe5 {[%clk 0:02:05.7]} 24... Qd6 {[%clk 0:01:09.4]} 25. Qf4
{[%clk 0:01:54]} 25... Rd3 {[%clk 0:00:52.2]} 26. Rae1 {[%clk 0:01:45.1]} 26...
Bg6 {[%clk 0:00:39]} 27. Qh6 {[%clk 0:01:39.3]} 27... Rd1 {[%clk 0:00:31.2]} 28.
h4 {[%clk 0:01:26.7]} 28... Rf6 {[%clk 0:00:20.6]} 29. Rxd1 {[%clk 0:01:14]}
29... Qxd1+ {[%clk 0:00:21.5]} 30. Kh2 {[%clk 0:01:13.8]} 30... Qd8 {[%clk
0:00:16.3]} 31. Bd5+ {[%clk 0:01:07.5]} 31... Bf7 {[%clk 0:00:16.6]} 32. Bxf7+
{[%clk 0:01:05.8]} 32... Kxf7 {[%clk 0:00:17.5]} 33. Qh7+ {[%clk 0:00:58.4]}
33... Kf8 {[%clk 0:00:15.9]} 34. Qh8+ {[%clk 0:00:58.3]} 1-0